bitfinex-derivatives/quotes_ETHF0:USTF0_20250602
["timestamp","ask_amount","ask_price","bid_price","bid_amount"]
[1748861171097,0.80468,2484.3,2484.2,2.04659399]
[1748861171900,1.95636,2484.4,2484.3,0.80468]
[1748861173798,1.95636,2484.4,2484.3,2.03952178]
[1748861175002,20.62236,2484.4,2484.3,2.03952178]
[1748861175197,0.80462,2484.6,2484.5,0.8046]
[1748861175504,0.80464,2484.5,2484.3,0.80465]
[1748861176005,19.46964,2484.4,2484.3,0.80465]
[1748861176305,19.46964,2484.4,2484.3,2.03901597]
[1748861176805,18.665,2484.4,2484.3,2.03889512]
[1748861177007,0.80463,2484.5,2484.4,0.80461]
[1748861177204,19.46863,2484.5,2484.4,0.80461]
[1748861178204,19.46763,2484.5,2484.4,0.80461]
[1748861178701,2.00989,2484.6,2484.5,0.80461]
[1748861178903,0.80465,2484.5,2484.4,0.80462]
[1748861179108,0.80465,2484.5,2484.4,2.03776187]
[1748861180308,0.80465,2484.5,2484.4,1.23314187]
[1748861180709,0.80467,2484.4,2484.3,0.80465]
[1748861180910,0.80467,2484.4,2484.3,2.03788449]
[1748861184712,19.46364,2484.5,2484.4,0.80461]
[1748861184911,19.46364,2484.5,2484.4,2.03832775]
[1748861185807,0.80464,2484.5,2484.4,2.03832775]
[1748861186003,19.46264,2484.5,2484.4,2.03832775]
[1748861187827,0.80464,2484.5,2484.4,2.03832775]
[1748861188027,19.46164,2484.5,2484.4,2.03832775]
[1748861188728,19.46164,2484.5,2484.4,2.03862969]
[1748861190430,19.46164,2484.5,2484.4,1.23401969]
[1748861190630,20.82514,2484.5,2484.4,2.03866969]
[1748861192726,20.82514,2484.5,2484.4,2.0398847]
[1748861193630,2.16814,2484.5,2484.4,2.0398847]
[1748861193835,19.45764,2484.5,2484.4,3.3444847]
[1748861194131,19.45764,2484.5,2484.4,2.0398847]
[1748861194531,20.73894,2484.5,2484.4,2.0398847]
[1748861195335,20.73894,2484.5,2484.4,1.2352347]
[1748861195536,20.73894,2484.5,2484.4,2.0398847]
[1748861195740,20.73894,2484.5,2484.4,1.2352347]
[1748861195928,20.73894,2484.5,2484.4,2.0398847]
[1748861196431,20.73894,2484.5,2484.4,1.2352347]
[1748861196734,20.73894,2484.5,2484.4,2.0421303]
[1748861197629,20.73894,2484.5,2484.4,3.2478081]
[1748861199335,20.73894,2484.5,2484.4,2.4431581]
[1748861200638,0.80465,2484.4,2484.3,0.80467]
[1748861200837,0.80465,2484.4,2484.3,2.04274113]
[1748861200838,2.07535,2484.4,2484.3,2.04274113]
[1748861201137,2.07535,2484.4,2484.3,3.64803162]
[1748861201337,2.07535,2484.4,2484.3,2.04274113]
[1748861201540,2.07535,2484.4,2484.3,3.64803162]
[1748861201840,2.00991,2484.6,2484.5,0.80461]
[1748861202039,20.65891,2484.6,2484.5,2.444508]
[1748861202231,21.92961,2484.6,2484.5,1.23807113]
[1748861202536,21.92961,2484.6,2484.5,2.04268113]
[1748861202730,21.92961,2484.6,2484.5,1.23807113]
[1748861204739,21.92961,2484.6,2484.4,2.01106687]
[1748861204740,0.80461,2484.5,2484.4,2.01107273]
[1748861204937,0.80461,2484.5,2484.4,2.04283827]
[1748861205631,0.80461,2484.5,2484.4,1.23820827]
[1748861205835,2.18281,2484.5,2484.4,2.44471015]
[1748861206040,2.18281,2484.5,2484.4,2.04285827]
[1748861206232,2.18281,2484.5,2484.4,3.24910132]
[1748861206632,2.18281,2484.5,2484.4,2.04285827]
[1748861207037,2.18281,2484.5,2484.4,3.24901921]
[1748861207237,2.18281,2484.5,2484.4,2.44436921]
[1748861207638,2.18281,2484.5,2484.4,1.23820827]
[1748861208338,2.18281,2484.5,2484.4,2.44402146]
[1748861208539,2.18281,2484.5,2484.4,2.44375261]
[1748861208733,2.18281,2484.5,2484.3,2.41326031]
[1748861208734,0.80465,2484.4,2484.3,2.41326031]
[1748861208936,0.80465,2484.4,2484.3,3.65051962]
[1748861209541,0.80465,2484.4,2484.3,4.95371962]
[1748861210641,21.86582,2484.6,2484.5,0.80461]
[1748861210642,1.2053,2484.6,2484.5,0.80461]
[1748861210933,18.65003318,2484.7,2484.6,0.80458]
[1748861211141,0.81058318,2484.7,2484.6,3.22608]
[1748861211333,0.81058318,2484.7,2484.6,7.21910411]
[1748861211636,0.00603318,2484.7,2484.6,7.21910411]
[1748861211841,0.81058318,2484.7,2484.6,7.21910411]
[1748861212237,0.81058318,2484.7,2484.6,43.01910411]
[1748861212538,0.81058318,2484.7,2484.6,43.01738793]
[1748861213232,0.81058318,2484.7,2484.6,7.21738793]
[1748861214041,0.81058318,2484.7,2484.6,5.61092313]
[1748861215237,0.00603318,2484.7,2484.6,5.61092313]
[1748861216446,0.81058318,2484.7,2484.6,5.6095092]
[1748861217542,0.00603318,2484.7,2484.6,5.6095092]
[1748861218043,0.81058318,2484.7,2484.6,5.6095092]
[1748861219646,0.81058318,2484.7,2484.6,5.60901747]
[1748861220346,0.00603318,2484.7,2484.6,5.60901747]
[1748861220550,0.00603318,2484.7,2484.6,5.60893647]
[1748861221042,4.01219,2485.3,2485.2,0.80439]
[1748861221343,3.20608106,2485.9,2485.2,0.80439]
[1748861221643,1.90999,2485.9,2485.8,0.80419]
[1748861221945,0.80423,2485.8,2485.7,0.8042]
[1748861222247,0.80423,2485.8,2485.7,3.3635]
[1748861222645,18.635,2485.8,2485.7,2.5593]
[1748861222847,1.90998,2485.9,2485.8,0.80419]
[1748861223042,20.54498,2485.9,2485.8,2.18229]
[1748861223342,20.54498,2485.9,2485.8,1.3781]
[1748861223845,20.54398,2485.9,2485.8,1.3781]
[1748861224045,1.90998,2485.9,2485.8,1.3781]
[1748861224234,1.90998,2485.9,2485.8,2.61164713]
[1748861224235,20.54398,2485.9,2485.8,2.61164713]
[1748861224437,3.2078,2486.0,2485.8,1.3781]
[1748861224649,0.00603318,2486.1,2486.0,0.80413]
[1748861224944,18.64003318,2486.1,2486.0,0.80413]
[1748861225140,19.44413318,2486.1,2486.0,0.80413]
[1748861225644,18.64003318,2486.1,2485.8,1.3781]
[1748861225941,0.80416,2485.9,2485.8,2.18226]
[1748861226146,0.80416,2485.9,2485.8,3.41353895]
[1748861226536,0.80416,2485.9,2485.8,2.18226]
[1748861226937,0.80422,2485.7,2485.6,0.00603318]
[1748861227152,0.80422,2485.7,2485.6,1.23662931]
[1748861227444,9.01202,2485.7,2485.6,0.00603318]
[1748861227642,0.80442,2485.1,2485.0,1.99898421]
[1748861227851,19.43442,2485.1,2485.0,2.03577509]
[1748861228253,19.43442,2485.1,2485.0,0.80445]
[1748861228643,18.63,2485.1,2485.0,0.80445]
[1748861228844,19.43442,2485.1,2485.0,0.80445]
[1748861229048,19.43442,2485.1,2485.0,4.01225]
[1748861229349,1.1938,2485.3,2485.0,6.45042058]
[1748861229547,1.99817,2485.3,2485.2,0.80439]
[1748861229846,19.8208,2485.3,2485.2,0.80439]
[1748861230245,0.80431,2485.5,2485.4,0.80429]
[1748861230451,0.80439,2485.3,2485.2,0.80436]
[1748861231044,2.09013,2485.4,2485.3,0.80435]
[1748861231347,18.627,2485.4,2485.3,4.01215]
[1748861231653,19.43132,2485.4,2485.3,0.80435]
[1748861234552,19.43132,2485.4,2485.3,2.03567341]
[1748861238354,19.43132,2485.4,2485.3,2.03760879]
[1748861240854,19.43132,2485.4,2485.3,1.23325879]
[1748861241052,19.43132,2485.4,2485.0,2.00164357]
[1748861241053,20.63786,2485.4,2485.0,2.00164357]
[1748861241256,2.14699,2485.3,2485.2,0.80435]
[1748861241449,3.15713,2485.6,2485.4,0.80429]
[1748861241760,3.15713,2485.6,2485.2,0.80436]
[1748861241761,0.80439,2485.3,2485.2,0.80436]
[1748861241950,0.80439,2485.2,2485.1,0.80439]
[1748861242254,2.00249,2485.2,2485.1,2.0396468]
[1748861242953,2.00249,2485.2,2485.1,2.0396768]
[1748861243751,3.34119,2485.2,2485.1,2.0396768]
[1748861244155,3.34119,2485.2,2485.1,1.2352568]
[1748861244455,3.34119,2485.2,2485.1,2.0396768]
[1748861244855,2.00249,2485.2,2485.1,2.0396768]
[1748861245157,20.62249,2485.2,2485.1,2.0396768]
[1748861245557,21.96119,2485.2,2485.1,2.0396768]
[1748861246061,21.96119,2485.2,2485.1,0.80442]
[1748861246253,21.96119,2485.2,2485.1,2.04032911]
[1748861248364,20.62249,2485.2,2485.1,3.24015586]
[1748861250161,20.62249,2485.2,2485.1,0.80442]
[1748861250364,20.62249,2485.2,2485.1,3.24227225]
[1748861251564,20.62249,2485.2,2485.1,3.24233537]
[1748861253252,2.00249,2485.2,2485.1,3.24233537]
[1748861253458,18.617,2485.2,2485.1,3.24233537]
[1748861253657,18.617,2485.2,2485.1,4.62773537]
[1748861253857,0.80437,2485.3,2485.2,0.80435]
[1748861254065,19.42137,2485.3,2485.2,3.42677404]
[1748861254263,19.42137,2485.3,2485.2,3.4264445]
[1748861254470,19.42137,2485.3,2485.2,1.2366945]
[1748861254669,20.72787,2485.3,2485.2,1.2366945]
[1748861255165,0.80439,2485.2,2485.1,2.00539844]
[1748861255366,2.14249,2485.2,2485.1,3.2425276]
[1748861255560,2.14249,2485.2,2485.1,2.04152916]
[1748861256161,2.14249,2485.2,2485.1,0.8044]
[1748861256367,20.75849,2485.2,2485.1,2.04208677]
[1748861256568,20.75849,2485.2,2485.1,3.64855157]
[1748861258162,20.75849,2485.2,2485.1,3.64804321]
[1748861258565,2.14249,2485.2,2485.1,3.64804321]
[1748861258770,20.75749,2485.2,2485.1,3.64804321]
[1748861260371,20.75649,2485.2,2485.1,3.64804321]
[1748861262071,20.75649,2485.2,2485.1,2.4108648]
[1748861262267,20.75649,2485.2,2485.1,3.64809855]
[1748861266279,20.75649,2485.2,2485.1,3.64802029]
[1748861266677,19.9521,2485.2,2485.1,3.64802029]
[1748861266876,19.41839,2485.2,2485.1,3.64802029]
[1748861267285,19.41539,2485.2,2485.1,3.64802029]
[1748861267484,19.41539,2485.2,2485.1,4.95552029]
[1748861268890,2.4647,2485.4,2485.3,0.80435]
[1748861268891,1.91564,2485.4,2485.3,0.80435]
[1748861269188,20.52564,2485.4,2485.3,3.24344514]
[1748861270086,20.52564,2485.4,2485.3,3.24387479]
[1748861270289,20.52464,2485.4,2485.3,3.24387479]
[1748861270888,20.52464,2485.4,2485.3,2.04150562]
[1748861271292,20.52464,2485.4,2485.3,3.24459544]
[1748861271592,1.91564,2485.4,2485.3,3.24459544]
[1748861271795,20.52364,2485.4,2485.3,3.24459544]
[1748861273692,20.52364,2485.4,2485.3,3.2453803]
[1748861273991,20.52264,2485.4,2485.3,3.2453803]
[1748861274192,20.52264,2485.4,2485.3,3.24540004]
[1748861275495,20.52264,2485.4,2485.3,2.04228045]
[1748861275895,20.52264,2485.4,2485.3,3.24550726]
[1748861276896,20.52164,2485.4,2485.3,3.18528045]
[1748861277495,20.52164,2485.4,2485.3,4.38872122]
[1748861277887,20.52164,2485.4,2485.3,3.18528045]
[1748861278601,20.52164,2485.4,2485.3,4.38895653]
[1748861278996,20.52164,2485.4,2485.3,2.44160653]
[1748861279502,0.80445,2485.0,2484.9,1.60560108]
[1748861279797,0.80448,2484.9,2484.8,0.00603318]
[1748861279993,21.78578,2484.9,2484.8,0.00603318]
[1748861280301,0.80461,2484.5,2484.4,2.40793574]
[1748861280490,0.80465,2484.4,2484.3,5.59569036]
[1748861280796,0.80468,2484.3,2484.2,3.18775462]
[1748861280997,0.80471,2484.2,2484.1,2.40793574]
[1748861281293,2.10021,2484.2,2484.1,2.40793574]
[1748861281498,0.80478,2484.0,2483.9,4.01665348]
[1748861282403,0.80477,2484.1,2484.0,0.80477]
[1748861283099,1.2955,2484.2,2484.1,0.80474]
[1748861283305,0.6031,2484.3,2484.2,0.80471]
[1748861283500,0.80472,2484.2,2484.1,0.80472]
[1748861284301,0.80474,2484.1,2484.0,1.1437]
[1748861284595,0.80478,2484.0,2483.9,3.21186348]
[1748861284799,1.94148,2484.0,2483.9,3.21186348]
[1748861286096,1.1367,2484.0,2483.9,0.80887348]
[1748861286400,1.1367,2484.0,2483.9,4.01667348]
[1748861286596,20.54748,2484.0,2483.9,4.01667348]
[1748861286900,19.7427,2484.0,2483.9,4.01667348]
[1748861287100,20.54748,2484.0,2483.9,4.01667348]
[1748861287303,19.7427,2484.0,2483.9,4.01667348]
[1748861287496,0.6031,2484.3,2484.0,0.80478]
[1748861287696,0.80474,2484.1,2484.0,0.80478]
[1748861288100,0.80478,2484.0,2483.9,1.91874348]
[1748861288299,0.80478,2484.0,2483.9,0.00406348]
[1748861288702,0.80478,2484.0,2483.9,0.80887348]
[1748861288998,0.80478,2484.0,2483.9,0.00406348]
[1748861289603,1.6714,2484.3,2483.9,3.21186348]
[1748861289804,1.6714,2484.3,2484.2,0.80471]
[1748861290002,20.2774,2484.3,2484.2,0.80471]
[1748861290298,0.6031,2484.3,2484.2,4.01251]
[1748861290501,7.2498,2485.2,2484.3,2.01166]
[1748861290696,4.042,2485.2,2484.8,2.0113]
[1748861290895,4.042,2485.2,2484.7,2.01138]
[1748861290896,19.40946,2485.1,2485.0,0.80443]
[1748861291802,19.41046,2485.1,2485.0,0.80443]
[1748861292106,0.80446,2485.1,2485.0,0.80443]
[1748861292303,19.40946,2485.1,2485.0,0.80443]
[1748861293003,0.80448,2485.0,2484.9,0.80446]
[1748861294007,18.605,2485.1,2485.0,0.80445]
[1748861294008,19.40943,2485.1,2485.0,0.80445]
[1748861295002,0.00603318,2485.3,2484.9,2.0112]
[1748861295208,0.00603318,2485.3,2485.2,0.80439]
[1748861295509,18.60903318,2485.3,2485.2,0.80439]
[1748861296408,0.00603318,2485.3,2485.2,0.80439]
[1748861296606,0.81038318,2485.3,2485.2,0.80439]
[1748861296807,0.80442,2485.2,2485.1,0.80439]
[1748861297012,0.80442,2485.2,2485.1,2.01275339]
[1748861297214,0.00603318,2485.3,2485.2,0.80439]
[1748861297413,0.81038318,2485.3,2485.2,0.80439]
[1748861298114,0.80441,2485.2,2485.1,0.8044]
[1748861298708,0.81041318,2485.3,2485.2,0.80439]
[1748861299414,0.00603318,2485.3,2485.2,0.80439]
[1748861299916,0.81038318,2485.3,2485.2,0.80439]
[1748861300516,0.8044,2485.2,2485.1,0.8044]
[1748861301502,0.81041318,2485.3,2485.2,0.80439]
[1748861301707,0.00603318,2485.3,2485.2,0.80439]
[1748861302209,0.00603318,2485.3,2485.2,2.01214678]
[1748861304112,0.00603318,2485.3,2485.2,0.80439]
[1748861306719,0.81038318,2485.3,2485.2,0.80439]
[1748861306918,0.00603318,2485.3,2485.2,0.80439]
[1748861307526,0.00603318,2485.3,2485.0,2.4084]
[1748861307726,2.01097,2485.2,2484.8,5.21909]
[1748861307917,0.80439,2485.2,2484.9,1.2604]
[1748861308123,0.80439,2485.2,2485.1,0.80439]
[1748861308325,19.39839,2485.2,2485.1,0.80439]
[1748861308620,0.80444,2485.1,2485.0,0.80443]
[1748861308820,18.593,2485.2,2485.0,0.80443]
[1748861309124,18.593,2485.2,2485.1,0.80442]
[1748861309318,18.593,2485.2,2485.1,3.14632]
[1748861309713,1.12003318,2485.3,2485.2,0.80439]
[1748861310015,18.593,2485.8,2485.6,0.80422]
[1748861310326,3.31249,2485.9,2485.8,0.80419]
[1748861310513,21.90549,2485.9,2485.8,0.80419]
[1748861310824,0.80429,2485.6,2485.5,0.80426]
[1748861311126,0.80429,2485.5,2485.4,4.01209]
[1748861313324,0.80432,2485.4,2485.3,0.00603318]
[1748861313528,3.22232,2485.4,2485.3,0.00603318]
[1748861314527,0.80448,2484.9,2484.8,0.8045]
[1748861314721,19.39448,2484.9,2484.8,5.22498402]
[1748861314918,19.39448,2484.9,2484.8,2.01718402]
[1748861315320,18.59,2484.9,2484.8,0.8045]
[1748861315520,18.59,2484.9,2484.8,2.01756108]
[1748861315818,19.6703,2485.0,2484.9,0.80448]
[1748861316018,20.47475,2485.0,2484.9,0.80448]
[1748861316520,20.47475,2485.0,2484.9,2.01829385]
[1748861316719,19.6703,2485.0,2484.9,2.01829385]
[1748861316920,20.47475,2485.0,2484.9,2.01829385]
[1748861317319,18.59,2485.0,2484.9,2.01829385]
[1748861317627,19.39445,2485.0,2484.9,3.13759385]
[1748861318729,0.80445,2485.0,2484.9,3.13759385]
[1748861319026,19.39443,2485.1,2485.0,0.80445]
[1748861319220,19.39442,2485.1,2485.0,3.09786385]
[1748861319422,19.39442,2485.1,2485.0,3.0999389]
[1748861320325,19.98202,2485.1,2485.0,3.0999389]
[1748861320827,19.98202,2485.1,2485.0,2.2954889]
[1748861321919,19.98202,2485.1,2485.0,1.2158889]
[1748861322323,19.98202,2485.1,2485.0,2.0203389]
[1748861322724,19.98202,2485.1,2485.0,1.2158889]
[1748861323027,0.80452,2484.8,2484.7,1.59533999]
[1748861323218,0.80455,2484.7,2484.6,0.00603318]
[1748861323420,0.80455,2484.7,2484.6,1.2226879]
[1748861324627,0.80455,2484.7,2484.6,2.0272679]
[1748861324931,19.39355,2484.7,2484.6,2.0272679]
[1748861326628,18.589,2484.7,2484.6,2.0272679]
[1748861327027,20.71455,2484.7,2484.6,2.0272679]
[1748861328630,19.91,2484.7,2484.6,2.0272679]
[1748861328928,18.589,2484.7,2484.6,2.0272679]
[1748861329124,0.80455,2484.7,2484.6,2.0272679]
[1748861329327,19.39355,2484.7,2484.6,2.0272679]
[1748861329524,0.80455,2484.7,2484.6,2.0272679]
[1748861329725,19.39255,2484.7,2484.6,2.0272679]
[1748861330329,2.12934,2484.8,2484.7,0.80455]
[1748861330522,1.921,2484.9,2484.8,0.80452]
[1748861330721,1.39205,2485.1,2485.0,0.80445]
[1748861330927,19.98005,2485.1,2485.0,0.80445]
[1748861333035,0.80448,2484.9,2484.8,2.17859]
[1748861333330,19.39248,2484.9,2484.8,3.39192883]
[1748861333728,19.39248,2484.9,2484.8,1.21333883]
[1748861335333,19.39248,2484.9,2484.8,2.01785883]
[1748861335729,19.39248,2484.9,2484.8,1.21333883]
[1748861337124,0.80455,2484.8,2484.7,0.80454]
[1748861337325,2.83055,2484.8,2484.7,2.01856893]
[1748861337832,21.41655,2484.8,2484.7,2.01856893]
[1748861338234,22.00435,2484.8,2484.7,2.01856893]
[1748861339033,22.00435,2484.8,2484.7,2.01862117]
[1748861339239,22.00435,2484.8,2484.7,1.21408117]
[1748861341237,22.00335,2484.8,2484.7,1.21408117]
[1748861341533,0.80455,2484.7,2484.6,0.81059318]
[1748861341725,0.80455,2484.7,2484.6,2.02510513]
[1748861342334,0.80455,2484.7,2484.6,3.2234964]
[1748861343531,0.80455,2484.7,2484.6,2.4189364]
[1748861343830,2.16155,2484.7,2484.6,2.4189364]
[1748861344035,2.16155,2484.7,2484.6,1.22054513]
[1748861344333,2.16155,2484.7,2484.3,1.19839127]
[1748861344334,0.80465,2484.4,2484.3,1.19839127]
[1748861344537,0.80471,2484.2,2484.1,1.59533999]
[1748861344724,0.80474,2484.1,2484.0,1.59533999]
[1748861344927,0.80478,2484.0,2483.9,1.19839127]
[1748861345325,2.16178,2484.0,2483.9,1.19839127]
[1748861345538,0.80481,2483.9,2483.8,4.40619127]
[1748861345729,2.83231,2483.9,2483.8,4.40619127]
[1748861346433,2.83231,2483.9,2483.8,3.2078]
[1748861347335,0.00603318,2484.2,2483.8,3.2078]
[1748861347540,0.00603318,2484.2,2484.1,0.80474]
[1748861347837,0.00603318,2484.2,2484.1,4.01254]
[1748861348030,0.00603318,2484.2,2484.1,8.04054]
[1748861348431,0.00603318,2484.2,2484.1,9.40614]
[1748861348836,0.00603318,2484.2,2484.1,11.00147999]
[1748861352432,0.81074318,2484.2,2484.1,6.97347999]
[1748861352737,0.81074318,2484.2,2484.1,6.5764708]
[1748861353039,0.00603318,2484.2,2484.1,6.5764708]
[1748861353238,0.00603318,2484.2,2484.1,5.37814]
[1748861354534,0.00603318,2484.2,2484.1,6.97558251]
[1748861355140,0.59403318,2484.2,2484.1,6.97558251]
[1748861356248,0.59403318,2484.2,2484.1,6.58556247]
[1748861357045,0.59403318,2484.2,2484.1,8.18248261]
[1748861357343,0.59403318,2484.2,2484.1,6.5852995]
[1748861357547,0.59403318,2484.2,2484.1,8.1822097]
[1748861359046,0.59403318,2484.2,2484.1,6.5852995]
[1748861359344,0.59403318,2484.2,2484.1,8.18152886]
[1748861359544,0.59403318,2484.2,2484.1,6.5852995]
[1748861359943,0.59403318,2484.2,2484.1,8.18156637]
[1748861360149,1.39874318,2484.2,2484.1,2.40467233]
[1748861360443,1.85743318,2484.2,2484.1,3.20941233]
[1748861360742,2.66214318,2484.2,2484.1,3.20941233]
[1748861360942,2.66214318,2484.2,2484.1,2.0118995]
[1748861361144,2.66214318,2484.2,2484.1,1.2071595]
[1748861361342,2.66214318,2484.2,2484.1,2.0118995]
[1748861361538,2.66214318,2484.2,2484.1,1.2071595]
[1748861361539,7.66214318,2484.2,2484.1,1.2071595]
[1748861361740,0.80481,2483.9,2483.8,1.59626687]
[1748861361936,0.80481,2483.9,2483.8,2.01206158]
[1748861362640,0.80481,2483.9,2483.8,2.01187928]
[1748861362860,0.80481,2483.9,2483.8,1.20703928]
[1748861363146,20.77171,2483.9,2483.8,1.20703928]
[1748861364040,20.77171,2483.9,2483.8,2.01187928]
[1748861364747,2.18871,2483.9,2483.8,2.01187928]
[1748861365047,2.18871,2483.9,2483.8,2.01191345]
[1748861365246,20.77271,2483.9,2483.8,2.01191345]
[1748861366340,0.6593,2484.0,2483.9,0.80481]
[1748861366544,0.59403318,2484.2,2484.1,0.80474]
[1748861366839,19.98274318,2484.2,2484.1,2.01181345]
[1748861367440,19.17803318,2484.2,2484.1,2.01181345]
[1748861367940,0.59403318,2484.2,2484.1,2.01181345]
[1748861368139,0.59403318,2484.2,2484.1,3.2094964]
[1748861368336,0.59403318,2484.2,2484.1,7.8825964]
[1748861368549,0.59403318,2484.2,2484.1,9.57658032]
[1748861368948,0.59403318,2484.2,2484.1,3.60737819]
[1748861369442,0.59403318,2484.2,2484.1,4.90277819]
[1748861370751,1.39874318,2484.2,2484.1,4.90277819]
[1748861371138,0.59403318,2484.2,2484.1,4.90277819]
[1748861372151,19.17803318,2484.2,2484.1,4.90277819]
[1748861372342,19.98274318,2484.2,2484.1,4.90277819]
[1748861372544,19.98274318,2484.2,2484.1,2.01111132]
[1748861373150,19.17803318,2484.2,2484.1,5.21891132]
[1748861373346,19.17803318,2484.2,2484.1,6.81517819]
[1748861373549,19.98274318,2484.2,2484.1,6.81517819]
[1748861373745,19.98274318,2484.2,2484.1,5.21891132]
[1748861374650,19.17803318,2484.2,2484.1,5.21891132]
[1748861375154,19.17803318,2484.2,2484.1,6.49341132]
[1748861376043,19.17803318,2484.2,2484.1,5.21891132]
[1748861376954,19.17803318,2484.2,2484.1,5.2204915]
[1748861377348,19.17803318,2484.2,2484.1,6.81675837]
[1748861377542,19.17803318,2484.2,2484.1,3.60895837]
[1748861377751,19.98274318,2484.2,2484.1,3.60895837]
[1748861378053,21.34334318,2484.2,2484.1,3.21194285]
[1748861379252,19.17603318,2484.2,2484.1,2.0126915]
[1748861379458,19.17603318,2484.2,2484.1,5.64315837]
[1748861379656,0.59403318,2484.2,2484.1,5.64315837]
[1748861379956,19.17603318,2484.2,2484.1,5.64315837]
[1748861380349,19.98074318,2484.2,2484.1,5.64315837]
[1748861380551,19.17603318,2484.2,2484.1,5.64315837]
[1748861380750,19.17603318,2484.2,2484.1,5.64375688]
[1748861381756,19.98074318,2484.2,2484.1,5.64375688]
[1748861381959,0.59403318,2484.2,2484.1,5.64375688]
[1748861382558,1.39874318,2484.2,2484.1,5.64375688]
[1748861382857,0.59403318,2484.2,2484.1,5.64375688]
[1748861383356,1.39874318,2484.2,2484.1,5.64375688]
[1748861383558,1.39874318,2484.2,2484.1,4.04749001]
[1748861384152,1.39874318,2484.2,2484.1,3.60955688]
[1748861384355,2.76584318,2484.2,2484.1,3.60955688]
[1748861384749,2.76584318,2484.2,2484.1,3.60968909]
[1748861385560,2.76584318,2484.2,2484.1,3.60973481]
[1748861385857,2.76584318,2484.2,2484.1,2.01346794]
[1748861386359,2.76584318,2484.2,2484.1,3.60973481]
[1748861388759,2.76584318,2484.2,2484.1,2.40100687]
[1748861388959,1.39874318,2484.2,2484.1,3.61100504]
[1748861389463,1.39874318,2484.2,2484.1,5.01020504]
[1748861392461,19.98074318,2484.2,2484.1,5.01020504]
[1748861392862,19.98074318,2484.2,2484.1,5.01048986]
[1748861393966,19.97974318,2484.2,2484.1,2.80654986]
[1748861394165,19.97974318,2484.2,2484.1,1.21028299]
[1748861395866,21.32564318,2484.2,2484.1,1.21028299]
[1748861396664,0.80478,2484.0,2483.9,0.8048]
[1748861396871,0.80478,2484.0,2483.9,2.01640507]
[1748861397071,0.80478,2484.0,2483.9,1.21160507]
[1748861397364,2.78098,2484.0,2483.9,2.41365496]
[1748861399269,3.36908,2484.0,2483.9,1.21160507]
[1748861400275,0.80481,2483.9,2483.8,2.00637362]
[1748861400470,2.10741,2483.9,2483.8,3.21742116]
[1748861400669,2.10741,2483.9,2483.8,3.21770747]
[1748861400974,2.10741,2483.9,2483.8,2.41287747]
[1748861402778,2.10741,2483.9,2483.8,1.21118948]
[1748861403276,0.80484,2483.8,2483.7,0.00406348]
[1748861403469,2.19814,2483.8,2483.7,1.21478988]
[1748861405075,2.19814,2483.8,2483.7,0.00406348]
[1748861405972,24.80414,2483.8,2483.7,0.00406348]
[1748861416885,28.01194,2483.8,2483.7,0.00406348]
[1748861421085,28.61584,2483.8,2483.7,0.00406348]
[1748861421482,28.61584,2483.8,2483.0,0.6436]
[1748861421483,0.80507,2483.1,2483.0,0.6436]
[1748861421687,0.8051,2483.0,2482.9,0.6742]
[1748861421888,1.4899,2483.0,2482.9,1.88192673]
[1748861422086,1.4899,2483.0,2482.9,1.20772673]
[1748861422287,0.8052,2482.7,2482.6,0.6462]
[1748861424189,0.8052,2482.7,2482.6,2.0445]
[1748861424988,0.80518,2482.8,2482.7,0.80518]
[1748861425188,0.80518,2482.8,2482.7,2.20348]
[1748861425189,19.39018,2482.8,2482.7,2.20348]
[1748861426077,19.39016,2482.8,2482.7,1.3983]
[1748861426784,19.99426,2482.8,2482.7,1.3983]
[1748861427491,19.99426,2482.8,2482.7,2.2035]
[1748861427788,19.99426,2482.8,2482.7,1.3983]
[1748861428381,0.8052,2482.7,2482.6,0.6462]
[1748861428892,0.8052,2482.7,2482.6,1.9157]
[1748861429086,0.8052,2482.7,2482.6,2.72093]
[1748861429279,0.8052,2482.7,2482.6,1.9157]
[1748861429782,0.8052,2482.7,2482.6,2.72093]
[1748861431887,19.3912,2482.7,2482.6,2.72093]
[1748861433093,19.3912,2482.7,2482.6,1.9157]
[1748861433293,19.3912,2482.7,2482.6,2.72093]
[1748861433888,19.3912,2482.7,2482.6,2.72796069]
[1748861434092,19.3912,2482.7,2482.6,1.92273069]
[1748861434394,19.3912,2482.7,2482.6,3.12344119]
[1748861434687,0.6041,2482.8,2482.7,0.8052]
[1748861434893,19.99626,2482.8,2482.7,3.32775455]
[1748861435388,0.8052,2482.7,2482.6,0.00703069]
[1748861435593,1.462,2482.7,2482.6,0.00703069]
[1748861436192,0.8052,2482.7,2482.6,0.81226069]
[1748861436387,19.3922,2482.7,2482.6,0.81226069]
[1748861436792,19.3922,2482.7,2482.6,0.00703069]
[1748861437191,19.3922,2482.7,2482.6,1.35993069]
[1748861439584,19.3922,2482.7,2482.6,0.00703069]
[1748861439791,20.7721,2482.7,2482.6,0.00703069]
[1748861440289,19.3922,2482.7,2482.6,0.00703069]
[1748861440798,19.3922,2482.7,2482.6,1.27113069]
[1748861442991,19.3922,2482.7,2482.6,0.00703069]
[1748861443192,20.7601,2482.7,2482.6,0.00703069]
[1748861446297,0.80539,2482.1,2482.0,3.2078]
[1748861446497,19.39239,2482.1,2482.0,4.41192654]
[1748861447201,19.39239,2482.1,2482.0,5.79242654]
[1748861450796,19.39239,2482.1,2482.0,5.79369076]
[1748861451801,19.39239,2482.1,2482.0,2.58589076]
[1748861453200,19.39239,2482.1,2482.0,3.39131076]
[1748861453406,5.2211,2482.4,2482.0,2.58589076]
[1748861453707,0.80536,2482.2,2482.1,3.35907076]
[1748861454809,0.80536,2482.2,2482.1,3.35931421]
[1748861455697,1.40966,2482.2,2482.1,3.35931421]
[1748861456397,19.1913,2482.2,2482.1,6.56711421]
[1748861456604,19.1913,2482.2,2482.1,7.76865922]
[1748861456996,0.6043,2482.2,2482.1,7.76865922]
[1748861458306,1.40966,2482.2,2482.1,4.56085922]
[1748861458697,0.6043,2482.2,2482.1,2.15368]
[1748861458910,0.6043,2482.2,2482.1,7.7700432]
[1748861459501,1.40966,2482.2,2482.1,7.7700432]
[1748861460209,1.40966,2482.2,2482.1,4.5622432]